[Event "106th British-ch 2019"]
[Site "Torquay"]
[Date "2019.08.03"]
[Round "8.24"]
[White "Player, Edmund C"]
[Black "Krzyzanowski, Patryk"]
[Result "0-1"]
[ECO "B36"]
[WhiteElo "2202"]
[BlackElo "2114"]
[Annotator "NA"]
[PlyCount "84"]
[EventDate "2019.07.27"]
[EventType "swiss"]
[EventCountry "GBR"]
[SourceTitle "playchess.com"]
[Source "ChessBase"]
[SourceQuality "1"]
[TimeControl "40/5400+30:1800+30"]

1. e4 {[%emt 0:00:00]} c5 {[%emt 0:00:00]} 2. Nf3 {[%emt 0:00:00]} g6 {[%emt 0:00:02]} 3. c4 {[%emt 0:00:00]} Nc6 {[%emt 0:00:08]} 4. d4 {[%emt 0:00:00]} cxd4 {[%emt 0:00:09]} 5. Nxd4 {[%emt 0:00:00]} Nf6 {[%emt 0:00:09]} 6. Nc3 {[%emt 0:00:07]} d6 {[%emt 0:00:07]} 7. Be2 {[%emt 0:00:25]} Nxd4 {[%emt 0:00:10]} 8. Qxd4 {[%emt 0:00:04]} Bg7 {[%emt 0:00:07]} 9. Be3 {[%emt 0:00:41]} O-O {[%emt 0:00:14]} 10. Qd2 {[%emt 0:00:15]} a5 {[%emt 0:02:14]} 11. O-O {[%emt 0:01:38]} a4 {[%emt 0:00:06]} 12. Rad1 {[%emt 0:01:14]} Qa5 {[%emt 0:00:22]} 13. Bd4 {[%emt 0:01:47]} Re8 {[%emt 0:10:41]} 14. h3 {[%emt 0:15:59]} Be6 {[%emt 0:04:46]} 15. f4 {[%emt 0:05:48]} Rec8 {[%emt 0:05:57]} 16. b3 {[%emt 0:00:56]} axb3 {[%emt 0:04:46]} 17. axb3 {[%emt 0:00:06]} Qb4 {[%emt 0:14:17]} 18. f5 {[%emt 0:09:53]} Bd7 {[%emt 0:03:39]} 19. Bxf6 {[%emt 0:02:05]} Bxf6 {[%emt 0:07:39]} 20. Nd5 {[%emt 0:00:38]} Qxd2 {[%emt 0:04:08]} 21. Nxf6+ {[%emt 0:00:16]} Kg7 {[%emt 0:00:07]} 22. Rxd2 {[%emt 0:12:47]} Kxf6 {[%emt 0:00:56]} 23. e5+ {[%emt 0:00:52]} Kxe5 {[%emt 0:11:02]} 24. fxg6 {[%emt 0:00:23]} f5 {[%emt 0:00:18]} 25. gxh7 {[%emt 0:04:22]} Rh8 {[%emt 0:00:53]} 26. Rd5+ {[%emt 0:00:25]} Kf6 {[%emt 0:00:18]} 27. Bd3 {[%emt 0:01:01]} e6 {[%emt 0:07:41]} 28. Rxd6 {[%emt 0:01:32]} Ke7 {[%emt 0:00:09]} 29. Rb6 {[%emt 0:01:10]} Bc6 {[%emt 0:01:29]} 30. b4 {[%emt 0:02:12]} Ra2 {[%emt 0:03:41]} 31. Rf2 {[%emt 0:01:18]} Rxf2 {[%emt 0:00:19]} 32. Kxf2 {[%emt 0:00:07]} Kd6 {[%emt 0:00:37]} 33. g4 {[%emt 0:33:36]} Rxh7 {[%emt 0:04:29]} 34. Bf1 {[%emt 0:00:59]} fxg4 {[%emt 0:02:39]} 35. c5+ {[%emt 0:02:27]} Ke5 {[%emt 0:08:25]} 36. hxg4 {[%emt 0:00:31]} Rf7+ {[%emt 0:01:09]} 37. Ke1 {[%emt 0:00:30]} Kd4 {[%emt 0:02:10]} 38. Bb5 {[%emt 0:00:31]} Bd5 {[%emt 0:00:23]} 39. Be8 {[%emt 0:01:44]} Rf4 {[%emt 0:00:45]} 40. g5 {[%emt 0:00:00]} Rg4 {[%emt 0:00:00]} 41. g6 {[%emt 0:12:55]} Ke3 {[%emt 0:21:46]} 42. Kd1 {[%emt 0:00:19]} Rc4 {[%emt 0:01:22]} 0-1

[Event "106th British-ch 2019"]
[Site "Torquay"]
[Date "2019.08.03"]
[Round "8.25"]
[White "Yoon, Jacob D"]
[Black "Donaldson, Thomas"]
[Result "1-0"]
[ECO "A45"]
[WhiteElo "1963"]
[BlackElo "2065"]
[Annotator "NA"]
[PlyCount "43"]
[EventDate "2019.07.27"]
[EventType "swiss"]
[EventCountry "GBR"]
[SourceTitle "playchess.com"]
[Source "ChessBase"]
[SourceQuality "1"]
[TimeControl "40/5400+30:1800+30"]

1. d4 {[%emt 0:00:00]} Nf6 {[%emt 0:00:00]} 2. Bg5 {[%emt 0:00:00]} c5 {[%emt 0:00:00]} 3. e3 {[%emt 0:00:13]} Qb6 {[%emt 0:01:31]} 4. Bxf6 {[%emt 0:08:37]} Qxb2 {[%emt 0:02:43]} 5. Nd2 {[%emt 0:01:11]} gxf6 {[%emt 0:00:13]} 6. Ngf3 {[%emt 0:03:20]} Nc6 {[%emt 0:05:31]} 7. dxc5 {[%emt 0:02:41]} f5 {[%emt 0:09:51]} 8. Bd3 {[%emt 0:09:33]} Bg7 {[%emt 0:00:09]} 9. Rb1 {[%emt 0:01:01]} Qf6 {[%emt 0:00:14]} 10. O-O {[%emt 0:02:08]} O-O {[%emt 0:14:36]} 11. e4 {[%emt 0:02:21]} Ne5 {[%emt 0:04:36]} 12. Nxe5 {[%emt 0:02:34]} Qxe5 {[%emt 0:00:08]} 13. exf5 {[%emt 0:00:40]} Qxc5 {[%emt 0:02:01]} 14. f6 {[%emt 0:05:52]} exf6 {[%emt 0:10:53]} 15. Rb5 {[%emt 0:03:32]} Qd4 {[%emt 0:04:06]} 16. Qh5 {[%emt 0:00:28]} h6 {[%emt 0:00:37]} 17. Qf5 {[%emt 0:00:09]} Re8 {[%emt 0:00:07]} 18. Rd5 {[%emt 0:01:26]} Qb6 {[%emt 0:02:23]} 19. Nc4 {[%emt 0:09:10]} Qe6 {[%emt 0:00:17]} 20. Qh7+ {[%emt 0:00:04]} Kf8 {[%emt 0:00:07]} 21. Ne3 {[%emt 0:01:39]} b6 {[%emt 0:00:53]} 22. Nf5 {[%emt 0:00:18]} 1-0

[Event "106th British-ch 2019"]
[Site "Torquay"]
[Date "2019.08.04"]
[Round "9.3"]
[White "Palliser, Richard Jd"]
[Black "Houska, Jovanka"]
[Result "1/2-1/2"]
[ECO "D36"]
[WhiteElo "2399"]
[BlackElo "2422"]
[Annotator "NA"]
[PlyCount "25"]
[EventDate "2019.07.27"]
[EventType "swiss"]
[EventCountry "GBR"]
[SourceTitle "playchess.com"]
[Source "ChessBase"]
[SourceQuality "1"]
[TimeControl "40/5400+30:1800+30"]

1. d4 {[%emt 0:01:17]} d5 {[%emt 0:00:00]} 2. c4 {[%emt 0:00:04]} e6 {[%emt 0:00:00]} 3. Nc3 {[%emt 0:00:05]} Nf6 {[%emt 0:00:12]} 4. cxd5 {[%emt 0:00:14]} exd5 {[%emt 0:00:05]} 5. Bg5 {[%emt 0:00:04]} c6 {[%emt 0:01:14]} 6. e3 {[%emt 0:01:57]} Be7 {[%emt 0:00:13]} 7. Bd3 {[%emt 0:00:05]} Nbd7 {[%emt 0:00:28]} 8. Qc2 {[%emt 0:00:28]} O-O {[%emt 0:00:46]} 9. Nf3 {[%emt 0:03:58]} Re8 {[%emt 0:03:04]} 10. h3 {[%emt 0:00:28]} Nf8 {[%emt 0:02:58]} 11. O-O {[%emt 0:07:25]} g6 {[%emt 0:06:17]} 12. Bf4 {[%emt 0:05:29]} Nh5 {[%emt 0:06:11]} 13. Bh2 {[%emt 0:22:04]} 1/2-1/2

[Event "106th British-ch 2019"]
[Site "Torquay"]
[Date "2019.08.04"]
[Round "9.4"]
[White "Emms, John M"]
[Black "Haria, Ravi"]
[Result "0-1"]
[ECO "C10"]
[WhiteElo "2481"]
[BlackElo "2430"]
[Annotator "ChessBase"]
[PlyCount "70"]
[EventDate "2019.07.27"]
[EventType "swiss"]
[EventCountry "GBR"]
[SourceTitle "playchess.com"]
[Source "ChessBase"]
[SourceQuality "1"]
[TimeControl "40/5400+30:1800+30"]

1. e4 {[%emt 0:00:00]} e6 {[%emt 0:00:00]} 2. d4 {[%emt 0:00:04]} d5 {[%emt 0:00:00]} 3. Nd2 {[%emt 0:00:18]} dxe4 {[%emt 0:00:19]} 4. Nxe4 {[%emt 0:00:56]} Bd7 {[%emt 0:00:05]} 5. Nf3 {[%emt 0:00:31]} Bc6 {[%emt 0:00:10]} 6. Bd3 {[%emt 0:00:21]} Nd7 {[%emt 0:00:11]} 7. c3 {[%emt 0:00:50]} Be7 {[%emt 0:03:19]} 8. O-O {[%emt 0:02:22]} Ngf6 {[%emt 0:01:00]} 9. Nxf6+ {[%emt 0:01:45]} Bxf6 {[%emt 0:00:24]} 10. Re1 {[%emt 0:02:56]} O-O {[%emt 0:11:30]} 11. Bf4 {[%emt 0:00:40]} Bxf3 {[%emt 0:03:19]} 12. Qxf3 {[%emt 0:00:04]} c6 {[%emt 0:00:10]} 13. Re3 {[%emt 0:19:33]} g6 {[%emt 0:04:59]} 14. Qg3 {[%emt 0:03:22]} Re8 {[%emt 0:16:55]} 15. Rae1 {[%emt 0:04:58]} a5 {[%emt 0:22:20]} 16. a4 {[%emt 0:25:03]} Qb6 {[%emt 0:03:52]} 17. h4 {[%emt 0:03:05]} Bg7 {[%emt 0:18:38]} 18. h5 {[%emt 0:04:42]} Qb3 {[%emt 0:06:53]} 19. Qh4 {[%emt 0:08:41]} Bf6 {[%emt 0:00:58]} 20. Qg4 {[%emt 0:00:29]} Bg7 {[%emt 0:00:53]} 21. hxg6 {[%emt 0:01:25]} hxg6 {[%emt 0:00:05]} 22. Rh3 {[%emt 0:02:06]} e5 {[%emt 0:01:14]} 23. dxe5 {[%emt 0:03:23]} Nf8 {[%emt 0:01:45]} 24. Qh4 {[%emt 0:02:54]} Qxa4 {[%emt 0:00:29]} 25. b3 {[%emt 0:02:59]} Qxb3 {[%emt 0:01:27]} 26. Bh6 {[%emt 0:02:45]} Rxe5 {[%emt 0:01:22]} 27. Bxg7 {[%emt 0:02:02]} Rh5 {[%emt 0:00:01]} 28. Qf6 {[%emt 0:01:16]} Nh7 {[%emt 0:00:52]} 29. Qe7 {[%emt 0:02:15]} Rxh3 {[%emt 0:00:30]} 30. gxh3 {[%emt 0:01:28]} Kxg7 {[%emt 0:00:05]} 31. Bxg6 {[%emt 0:00:11]} Nf6 {[%emt 0:01:02]} 32. Bc2 {[%emt 0:01:54]} Qxc2 {[%emt 0:00:36]} 33. Kh1 {[%emt 0:00:08]} Qf5 {[%emt 0:00:20]} 34. Rg1+ {[%emt 0:00:41]} Kh8 {[%emt 0:00:10]} 35. Qe3 {[%emt 0:00:42]} Qe4+ {[%emt 0:01:51]} 0-1

[Event "106th British-ch 2019"]
[Site "Torquay"]
[Date "2019.08.04"]
[Round "9.5"]
[White "Tan, Justin Hy"]
[Black "Williams, Simon K"]
[Result "1-0"]
[ECO "B51"]
[WhiteElo "2513"]
[BlackElo "2468"]
[Annotator "ChessBase"]
[PlyCount "125"]
[EventDate "2019.07.27"]
[EventType "swiss"]
[EventCountry "GBR"]
[SourceTitle "playchess.com"]
[Source "ChessBase"]
[SourceQuality "1"]
[TimeControl "40/5400+30:1800+30"]

1. e4 {[%emt 0:00:00]} c5 {[%emt 0:01:45]} 2. Nf3 {[%emt 0:00:00]} d6 {[%emt 0:00:39]} 3. Bb5+ {[%emt 0:00:00]} Nc6 {[%emt 0:00:23]} 4. O-O {[%emt 0:00:00]} Bd7 {[%emt 0:00:09]} 5. Re1 {[%emt 0:00:00]} Nf6 {[%emt 0:00:12]} 6. h3 {[%emt 0:00:00]} a6 {[%emt 0:01:35]} 7. Bf1 {[%emt 0:00:36]} g5 {[%emt 0:04:45]} 8. d4 {[%emt 0:00:04]} g4 {[%emt 0:00:43]} 9. d5 {[%emt 0:00:01]} gxf3 {[%emt 0:02:20]} 10. dxc6 {[%emt 0:00:04]} Bxc6 {[%emt 0:01:10]} 11. Qxf3 {[%emt 0:00:04]} e6 {[%emt 0:00:52]} 12. Nc3 {[%emt 0:00:05]} Be7 {[%emt 0:01:19]} 13. Bf4 {[%emt 0:04:39]} Qc7 {[%emt 0:15:40]} 14. Rad1 {[%emt 0:12:37]} O-O-O {[%emt 0:00:44]} 15. Bg5 {[%emt 0:12:55]} Ne8 {[%emt 0:09:05]} 16. Nd5 {[%emt 0:08:00]} Bxd5 {[%emt 0:00:31]} 17. Bxe7 {[%emt 0:00:02]} Qxe7 {[%emt 0:00:55]} 18. exd5 {[%emt 0:00:10]} e5 {[%emt 0:00:53]} 19. b4 {[%emt 0:00:36]} cxb4 {[%emt 0:01:15]} 20. Re4 {[%emt 0:04:18]} Nf6 {[%emt 0:00:24]} 21. Rc4+ {[%emt 0:00:01]} Kb8 {[%emt 0:08:24]} 22. Rxb4 {[%emt 0:00:02]} Nd7 {[%emt 0:00:06]} 23. Bxa6 {[%emt 0:00:29]} Nc5 {[%emt 0:00:06]} 24. Bf1 {[%emt 0:00:27]} e4 {[%emt 0:09:15]} 25. Qf4 {[%emt 0:05:24]} Rhe8 {[%emt 0:04:49]} 26. Bb5 {[%emt 0:05:53]} Qe5 {[%emt 0:00:48]} 27. Qe3 {[%emt 0:04:52]} Re7 {[%emt 0:02:38]} 28. f4 {[%emt 0:08:43]} exf3 {[%emt 0:01:16]} 29. Qxe5 {[%emt 0:06:49]} Rxe5 {[%emt 0:01:04]} 30. gxf3 {[%emt 0:00:03]} Re3 {[%emt 0:16:31]} 31. Kf2 {[%emt 0:02:18]} Ra3 {[%emt 0:00:12]} 32. Bc4 {[%emt 0:01:45]} Rc3 {[%emt 0:00:54]} 33. Rd2 {[%emt 0:00:21]} Re8 {[%emt 0:02:05]} 34. Bb5 {[%emt 0:05:07]} Re5 {[%emt 0:02:14]} 35. Rf4 {[%emt 0:01:16]} f5 {[%emt 0:00:28]} 36. a4 {[%emt 0:02:01]} Kc7 {[%emt 0:00:52]} 37. Rh4 {[%emt 0:01:30]} Re7 {[%emt 0:00:38]} 38. Rh5 {[%emt 0:02:25]} Ra3 {[%emt 0:02:05]} 39. Rd4 {[%emt 0:03:02]} Rc3 {[%emt 0:02:50]} 40. Rxf5 {[%emt 0:00:47]} Rxc2+ {[%emt 0:00:04]} 41. Kg3 {[%emt 0:30:06]} Rc1 {[%emt 0:30:54]} 42. Rdf4 {[%emt 0:05:19]} Rg1+ {[%emt 0:00:32]} 43. Kh4 {[%emt 0:00:44]} Rgg7 {[%emt 0:00:29]} 44. Rg5 {[%emt 0:00:00]} Rgf7 {[%emt 0:00:00]} 45. Rxf7 {[%emt 0:00:00]} Rxf7 {[%emt 0:00:00]} 46. Kg4 {[%emt 0:00:00]} Kb6 {[%emt 0:00:00]} 47. Rf5 {[%emt 0:00:00]} Rg7+ {[%emt 0:00:00]} 48. Kh5 {[%emt 0:00:00]} Nd7 {[%emt 0:00:00]} 49. Kh6 {[%emt 0:00:00]} Re7 {[%emt 0:00:00]} 50. Rf4 {[%emt 0:00:00]} Ne5 {[%emt 0:00:00]} 51. Rf6 {[%emt 0:00:00]} Kc5 {[%emt 0:00:00]} 52. f4 {[%emt 0:00:00]} Nf3 {[%emt 0:00:00]} 53. Bd3 {[%emt 0:00:00]} Kxd5 {[%emt 0:00:00]} 54. Bxh7 {[%emt 0:00:00]} Kc5 {[%emt 0:00:00]} 55. Bg8 {[%emt 0:00:25]} Rd7 {[%emt 0:00:00]} 56. Rf7 {[%emt 0:02:41]} Rd8 {[%emt 0:00:00]} 57. Rc7+ {[%emt 0:00:52]} Kd4 {[%emt 0:00:00]} 58. Kg7 {[%emt 0:00:02]} d5 {[%emt 0:00:00]} 59. f5 {[%emt 0:00:24]} Nh4 {[%emt 0:00:00]} 60. Bh7 {[%emt 0:00:07]} Nf3 {[%emt 0:00:00]} 61. f6 {[%emt 0:00:38]} Ng5 {[%emt 0:00:00]} 62. Bf5 {[%emt 0:02:10]} Ke5 {[%emt 0:00:00]} 63. Bg4 {[%emt 0:02:29]} 1-0

[Event "106th British-ch 2019"]
[Site "Torquay"]
[Date "2019.08.04"]
[Round "9.7"]
[White "Bradbury, Neil H"]
[Black "Fernandez, Daniel Howard"]
[Result "1-0"]
[ECO "A40"]
[WhiteElo "2322"]
[BlackElo "2466"]
[Annotator "ChessBase"]
[PlyCount "77"]
[EventDate "2019.07.27"]
[EventType "swiss"]
[EventCountry "GBR"]
[SourceTitle "playchess.com"]
[Source "ChessBase"]
[SourceQuality "1"]
[TimeControl "40/5400+30:1800+30"]

1. d4 {[%emt 0:00:00]} b5 {[%emt 0:08:21]} 2. e4 {[%emt 0:03:58]} Bb7 {[%emt 0:00:01]} 3. Nd2 {[%emt 0:00:43]} b4 {[%emt 0:00:01]} 4. Ngf3 {[%emt 0:00:23]} e6 {[%emt 0:00:02]} 5. Bd3 {[%emt 0:03:35]} c5 {[%emt 0:00:10]} 6. c3 {[%emt 0:00:49]} d5 {[%emt 0:00:41]} 7. exd5 {[%emt 0:12:14]} Bxd5 {[%emt 0:00:02]} 8. O-O {[%emt 0:01:57]} bxc3 {[%emt 0:01:09]} 9. bxc3 {[%emt 0:00:18]} Nf6 {[%emt 0:00:54]} 10. Ne5 {[%emt 0:08:59]} cxd4 {[%emt 0:02:15]} 11. Bb5+ {[%emt 0:12:21]} Nbd7 {[%emt 0:01:33]} 12. c4 {[%emt 0:02:28]} Bb7 {[%emt 0:00:02]} 13. Ndf3 {[%emt 0:02:07]} Qc7 {[%emt 0:02:27]} 14. Bg5 {[%emt 0:16:08]} a6 {[%emt 0:02:40]} 15. Ba4 {[%emt 0:03:04]} Bc8 {[%emt 0:00:53]} 16. Bc6 {[%emt 0:03:59]} Bb7 {[%emt 0:03:04]} 17. Ba4 {[%emt 0:01:35]} Bc8 {[%emt 0:00:46]} 18. Bc6 {[%emt 0:00:20]} Rb8 {[%emt 0:03:01]} 19. Qxd4 {[%emt 0:00:34]} Rb6 {[%emt 0:00:13]} 20. Ba4 {[%emt 0:09:15]} Bc5 {[%emt 0:01:00]} 21. Nxd7 {[%emt 0:00:44]} Bxd4 {[%emt 0:03:42]} 22. Nxb6+ {[%emt 0:05:05]} Kf8 {[%emt 0:00:01]} 23. Nxd4 {[%emt 0:00:42]} Qxb6 {[%emt 0:00:02]} 24. Nc6 {[%emt 0:05:53]} Qc5 {[%emt 0:01:09]} 25. Bd2 {[%emt 0:00:17]} Qh5 {[%emt 0:03:06]} 26. Rab1 {[%emt 0:00:33]} g6 {[%emt 0:00:15]} 27. Rb3 {[%emt 0:01:53]} Bd7 {[%emt 0:00:30]} 28. Rf3 {[%emt 0:00:33]} Ne4 {[%emt 0:00:33]} 29. Bb4+ {[%emt 0:01:27]} Kg7 {[%emt 0:00:12]} 30. Rd1 {[%emt 0:00:25]} Bxc6 {[%emt 0:04:40]} 31. Bxc6 {[%emt 0:00:02]} Rc8 {[%emt 0:00:28]} 32. Bxe4 {[%emt 0:00:58]} Rxc4 {[%emt 0:00:03]} 33. Be7 {[%emt 0:00:11]} h6 {[%emt 0:02:34]} 34. Bf6+ {[%emt 0:00:39]} Kh7 {[%emt 0:00:01]} 35. Bd3 {[%emt 0:00:39]} Rf4 {[%emt 0:00:27]} 36. Rxf4 {[%emt 0:01:16]} Qxd1+ {[%emt 0:00:03]} 37. Bf1 {[%emt 0:00:06]} Qd2 {[%emt 0:00:50]} 38. Rd4 {[%emt 0:01:05]} Qxa2 {[%emt 0:00:08]} 39. Rd8 {[%emt 0:00:13]} 1-0

[Event "106th British-ch 2019"]
[Site "Torquay"]
[Date "2019.08.04"]
[Round "9.8"]
[White "Ashton, Adam G"]
[Black "Ward, Chris G"]
[Result "1/2-1/2"]
[ECO "B36"]
[WhiteElo "2323"]
[BlackElo "2418"]
[Annotator "ChessBase"]
[PlyCount "51"]
[EventDate "2019.07.27"]
[EventType "swiss"]
[EventCountry "GBR"]
[SourceTitle "playchess.com"]
[Source "ChessBase"]
[SourceQuality "1"]
[TimeControl "40/5400+30:1800+30"]

1. e4 {[%emt 0:00:41]} c5 {[%emt 0:01:50]} 2. Nf3 {[%emt 0:00:30]} g6 {[%emt 0:01:03]} 3. c4 {[%emt 0:00:35]} Nc6 {[%emt 0:03:04]} 4. d4 {[%emt 0:00:08]} cxd4 {[%emt 0:00:26]} 5. Nxd4 {[%emt 0:00:06]} Nf6 {[%emt 0:02:11]} 6. Nc3 {[%emt 0:00:08]} d6 {[%emt 0:00:04]} 7. Be2 {[%emt 0:00:45]} Nxd4 {[%emt 0:00:19]} 8. Qxd4 {[%emt 0:00:05]} Bg7 {[%emt 0:00:05]} 9. Bg5 {[%emt 0:04:25]} O-O {[%emt 0:02:11]} 10. Qd2 {[%emt 0:00:14]} a5 {[%emt 0:01:33]} 11. O-O {[%emt 0:04:53]} a4 {[%emt 0:05:38]} 12. Rab1 {[%emt 0:05:56]} Be6 {[%emt 0:07:23]} 13. f3 {[%emt 0:05:23]} Qa5 {[%emt 0:07:05]} 14. Rfc1 {[%emt 0:05:59]} Rfc8 {[%emt 0:07:32]} 15. b4 {[%emt 0:03:39]} axb3 {[%emt 0:03:53]} 16. axb3 {[%emt 0:00:08]} Qb4 {[%emt 0:10:57]} 17. Rc2 {[%emt 0:20:30]} Ra3 {[%emt 0:10:31]} 18. Nb5 {[%emt 0:01:12]} Qxd2 {[%emt 0:01:12]} 19. Rxd2 {[%emt 0:05:01]} Ra5 {[%emt 0:04:33]} 20. Be3 {[%emt 0:02:18]} Rca8 {[%emt 0:03:04]} 21. Nc7 {[%emt 0:05:37]} Ra1 {[%emt 0:00:16]} 22. Rxa1 {[%emt 0:00:21]} Rxa1+ {[%emt 0:00:16]} 23. Rd1 {[%emt 0:00:09]} Ra2 {[%emt 0:02:03]} 24. Rd2 {[%emt 0:00:28]} Ra1+ {[%emt 0:04:22]} 25. Rd1 {[%emt 0:00:09]} Ra2 {[%emt 0:12:08]} 26. Rd2 {[%emt 0:00:35]} 1/2-1/2

[Event "106th British-ch 2019"]
[Site "Torquay"]
[Date "2019.08.04"]
[Round "9.9"]
[White "Rudd, Jack"]
[Black "Wadsworth, Matthew J"]
[Result "0-1"]
[ECO "A64"]
[WhiteElo "2275"]
[BlackElo "2418"]
[Annotator "NA"]
[PlyCount "68"]
[EventDate "2019.07.27"]
[EventType "swiss"]
[EventCountry "GBR"]
[SourceTitle "playchess.com"]
[Source "ChessBase"]
[SourceQuality "1"]
[TimeControl "40/5400+30:1800+30"]

1. d4 {[%emt 0:00:00]} Nf6 {[%emt 0:02:58]} 2. c4 {[%emt 0:00:00]} c5 {[%emt 0:00:05]} 3. d5 {[%emt 0:00:00]} e6 {[%emt 0:00:03]} 4. Nc3 {[%emt 0:00:00]} exd5 {[%emt 0:00:08]} 5. cxd5 {[%emt 0:00:00]} d6 {[%emt 0:00:04]} 6. Nf3 {[%emt 0:00:10]} g6 {[%emt 0:00:09]} 7. g3 {[%emt 0:00:08]} Bg7 {[%emt 0:00:18]} 8. Bg2 {[%emt 0:00:07]} O-O {[%emt 0:00:19]} 9. O-O {[%emt 0:00:06]} a6 {[%emt 0:00:04]} 10. a4 {[%emt 0:00:05]} Nbd7 {[%emt 0:00:05]} 11. Nd2 {[%emt 0:00:11]} Re8 {[%emt 0:00:32]} 12. Nc4 {[%emt 0:00:09]} Ne5 {[%emt 0:00:06]} 13. Na3 {[%emt 0:00:07]} Nh5 {[%emt 0:01:26]} 14. e4 {[%emt 0:01:47]} b5 {[%emt 0:03:37]} 15. axb5 {[%emt 0:00:19]} axb5 {[%emt 0:00:02]} 16. Ncxb5 {[%emt 0:00:10]} Ba6 {[%emt 0:00:06]} 17. Nc3 {[%emt 0:04:30]} Bxf1 {[%emt 0:03:20]} 18. Bxf1 {[%emt 0:00:09]} Nf6 {[%emt 0:09:12]} 19. Bb5 {[%emt 0:02:32]} Re7 {[%emt 0:00:17]} 20. Bf4 {[%emt 0:03:46]} Qb8 {[%emt 0:06:11]} 21. Rb1 {[%emt 0:02:21]} h6 {[%emt 0:07:21]} 22. f3 {[%emt 0:02:41]} Nfd7 {[%emt 0:01:29]} 23. Kg2 {[%emt 0:09:43]} Nb6 {[%emt 0:01:05]} 24. Bc6 {[%emt 0:04:09]} Ra6 {[%emt 0:05:39]} 25. Qb3 {[%emt 0:03:15]} Qc8 {[%emt 0:07:10]} 26. Bxe5 {[%emt 0:03:52]} Bxe5 {[%emt 0:00:07]} 27. Ncb5 {[%emt 0:00:08]} Qd8 {[%emt 0:04:48]} 28. Re1 {[%emt 0:01:40]} Ra4 {[%emt 0:02:16]} 29. Nc2 {[%emt 0:02:01]} c4 {[%emt 0:01:33]} 30. Qe3 {[%emt 0:00:57]} Ra2 {[%emt 0:00:07]} 31. f4 {[%emt 0:02:19]} Rxb2 {[%emt 0:04:34]} 32. Re2 {[%emt 0:00:19]} Bg7 {[%emt 0:06:42]} 33. Qa3 {[%emt 0:03:12]} Nxd5 {[%emt 0:02:40]} 34. Nxd6 {[%emt 0:00:16]} Nb4 {[%emt 0:00:37]} 0-1

[Event "106th British-ch 2019"]
[Site "Torquay"]
[Date "2019.08.04"]
[Round "9.10"]
[White "Pein, Malcolm"]
[Black "Eggleston, David J"]
[Result "0-1"]
[ECO "E05"]
[WhiteElo "2312"]
[BlackElo "2399"]
[Annotator "NA"]
[PlyCount "70"]
[EventDate "2019.07.27"]
[EventType "swiss"]
[EventCountry "GBR"]
[SourceTitle "playchess.com"]
[Source "ChessBase"]
[SourceQuality "1"]
[TimeControl "40/5400+30:1800+30"]

1. Nf3 {[%emt 0:00:00]} Nf6 {[%emt 0:00:00]} 2. c4 {[%emt 0:00:00]} e6 {[%emt 0:00:00]} 3. g3 {[%emt 0:00:01]} d5 {[%emt 0:00:00]} 4. Bg2 {[%emt 0:00:15]} Be7 {[%emt 0:00:02]} 5. O-O {[%emt 0:00:09]} O-O {[%emt 0:00:04]} 6. d4 {[%emt 0:00:27]} dxc4 {[%emt 0:04:02]} 7. Qc2 {[%emt 0:00:11]} a6 {[%emt 0:00:18]} 8. Qxc4 {[%emt 0:00:27]} b5 {[%emt 0:00:05]} 9. Qc2 {[%emt 0:00:06]} Bb7 {[%emt 0:00:04]} 10. Bd2 {[%emt 0:00:21]} Be4 {[%emt 0:00:57]} 11. Qc1 {[%emt 0:01:36]} Qc8 {[%emt 0:00:45]} 12. Bg5 {[%emt 0:00:39]} Nbd7 {[%emt 0:01:08]} 13. Nbd2 {[%emt 0:00:25]} Bb7 {[%emt 0:00:05]} 14. Nb3 {[%emt 0:02:45]} a5 {[%emt 0:00:24]} 15. a4 {[%emt 0:04:30]} bxa4 {[%emt 0:00:57]} 16. Rxa4 {[%emt 0:01:26]} Bd5 {[%emt 0:00:13]} 17. Bxf6 {[%emt 0:31:31]} Nxf6 {[%emt 0:04:22]} 18. Nxa5 {[%emt 0:06:06]} Qa6 {[%emt 0:00:18]} 19. Qc2 {[%emt 0:06:09]} Qb5 {[%emt 0:04:07]} 20. b4 {[%emt 0:05:37]} Bxb4 {[%emt 0:04:01]} 21. Rb1 {[%emt 0:05:17]} Be4 {[%emt 0:00:22]} 22. Raxb4 {[%emt 0:01:11]} Qxa5 {[%emt 0:04:49]} 23. Qb2 {[%emt 0:00:21]} Bxb1 {[%emt 0:03:45]} 24. Qxb1 {[%emt 0:00:07]} c5 {[%emt 0:04:15]} 25. Rb5 {[%emt 0:00:44]} Qa2 {[%emt 0:01:18]} 26. Ne5 {[%emt 0:00:23]} Qxb1+ {[%emt 0:01:41]} 27. Rxb1 {[%emt 0:00:02]} Rab8 {[%emt 0:03:51]} 28. Rc1 {[%emt 0:02:52]} cxd4 {[%emt 0:00:55]} 29. Nc6 {[%emt 0:00:03]} Rb2 {[%emt 0:00:27]} 30. Nxd4 {[%emt 0:00:13]} Rfb8 {[%emt 0:01:09]} 31. e3 {[%emt 0:02:09]} Rb1 {[%emt 0:00:42]} 32. Rxb1 {[%emt 0:00:05]} Rxb1+ {[%emt 0:00:03]} 33. Bf1 {[%emt 0:00:06]} Ne4 {[%emt 0:01:18]} 34. Kg2 {[%emt 0:00:18]} Rb2 {[%emt 0:00:22]} 35. Ne2 {[%emt 0:01:25]} e5 {[%emt 0:01:13]} 0-1

[Event "106th British-ch 2019"]
[Site "Torquay"]
[Date "2019.08.04"]
[Round "9.11"]
[White "Toma, Katarzyna"]
[Black "Willow, Jonah B"]
[Result "0-1"]
[ECO "B42"]
[WhiteElo "2229"]
[BlackElo "2343"]
[Annotator "NA"]
[PlyCount "38"]
[EventDate "2019.07.27"]
[EventType "swiss"]
[EventCountry "GBR"]
[SourceTitle "playchess.com"]
[Source "ChessBase"]
[SourceQuality "1"]
[TimeControl "40/5400+30:1800+30"]

1. e4 {[%emt 0:00:00]} c5 {[%emt 0:00:00]} 2. Nf3 {[%emt 0:00:00]} e6 {[%emt 0:00:00]} 3. d4 {[%emt 0:00:00]} cxd4 {[%emt 0:00:00]} 4. Nxd4 {[%emt 0:00:00]} a6 {[%emt 0:00:00]} 5. Bd3 {[%emt 0:00:09]} Nf6 {[%emt 0:00:03]} 6. Qe2 {[%emt 0:04:36]} d6 {[%emt 0:02:30]} 7. c4 {[%emt 0:00:54]} b6 {[%emt 0:00:49]} 8. Nc3 {[%emt 0:00:13]} Bb7 {[%emt 0:00:06]} 9. O-O {[%emt 0:00:47]} Be7 {[%emt 0:00:42]} 10. Be3 {[%emt 0:03:06]} Nbd7 {[%emt 0:00:36]} 11. f3 {[%emt 0:04:13]} O-O {[%emt 0:01:20]} 12. Rfc1 {[%emt 0:00:19]} Ne5 {[%emt 0:04:02]} 13. Nb3 {[%emt 0:09:46]} Re8 {[%emt 0:19:14]} 14. a4 {[%emt 0:12:03]} d5 {[%emt 0:01:44]} 15. a5 {[%emt 0:11:34]} d4 {[%emt 0:16:12]} 16. Bxd4 {[%emt 0:13:36]} Nxd3 {[%emt 0:00:06]} 17. Rd1 {[%emt 0:01:38]} Nf4 {[%emt 0:03:32]} 18. Qe3 {[%emt 0:00:04]} N6h5 {[%emt 0:01:51]} 19. Be5 {[%emt 0:06:47]} Bc5 {[%emt 0:02:02]} 0-1